bitfinex/quotes_SOLUSD_20260124
["timestamp","ask_amount","ask_price","bid_price","bid_amount"]
[1769242820289,1.68630706,127.13,127.1,1.57776685]
[1769242820589,5.64136963,127.12,127.1,1.57776685]
[1769242820789,1.68630706,127.13,127.1,1.57776685]
[1769242820990,5.64136963,127.12,127.1,1.57776685]
[1769242821191,1.68630706,127.13,127.1,1.57776685]
[1769242821493,5.64138869,127.12,127.1,1.57776685]
[1769242821690,1.68630706,127.13,127.1,1.57776685]
[1769242821991,5.64135973,127.12,127.1,1.57776685]
[1769242822291,1.68630706,127.13,127.1,1.57776685]
[1769242822492,5.64142664,127.12,127.1,1.57776685]
[1769242822697,1.68630706,127.13,127.1,1.57776685]
[1769242822899,5.64142664,127.12,127.1,1.57776685]
[1769242823198,1.68630706,127.13,127.1,1.57776685]
[1769242823399,5.64143756,127.12,127.1,1.57776685]
[1769242823694,1.68630706,127.13,127.1,1.57776685]
[1769242823895,5.64149164,127.12,127.1,1.57776685]
[1769242824099,1.68630706,127.13,127.1,1.57776685]
[1769242824395,5.64151433,127.12,127.1,1.57776685]
[1769242824588,1.68630706,127.13,127.1,1.57776685]
[1769242824794,5.64157934,127.12,127.1,1.57776685]
[1769242824996,1.68630706,127.13,127.1,1.57776685]
[1769242825197,5.64157934,127.12,127.1,1.57776685]
[1769242825397,1.68630706,127.13,127.1,1.57776685]
[1769242825590,5.64167669,127.12,127.1,1.57776685]
[1769242825934,1.68630706,127.13,127.1,1.57776685]
[1769242826101,5.64167669,127.12,127.1,1.57776685]
[1769242826301,1.68630706,127.13,127.1,1.57776685]
[1769242826481,5.64179722,127.12,127.1,1.57776685]
[1769242826683,1.68630706,127.13,127.1,1.57776685]
[1769242826882,5.64179722,127.12,127.1,1.57776685]
[1769242827096,1.68630706,127.13,127.1,1.57776685]
[1769242827289,5.64181007,127.12,127.1,1.57776685]
[1769242827491,1.68630706,127.13,127.1,1.57776685]
[1769242827690,5.64190983,127.12,127.1,1.57776685]
[1769242827890,1.68630706,127.13,127.1,1.57776685]
[1769242828090,5.64190983,127.12,127.1,1.57776685]
[1769242828294,1.68630706,127.13,127.1,1.57776685]
[1769242828493,5.64205186,127.12,127.1,1.57776685]
[1769242828685,1.68630706,127.13,127.1,1.57776685]
[1769242828886,5.64205186,127.12,127.1,1.57776685]
[1769242829101,1.68630706,127.13,127.1,1.57776685]
[1769242829307,5.62940077,127.12,127.1,1.57776685]
[1769242829607,1.68630706,127.13,127.1,1.57776685]
[1769242829792,5.62953338,127.12,127.1,1.57776685]
[1769242829994,1.68630706,127.13,127.1,1.57776685]
[1769242830195,5.62955631,127.12,127.1,1.57776685]
[1769242830395,3.80739923,127.13,127.1,1.57776685]
[1769242830602,5.62958203,127.12,127.1,1.57776685]
[1769242830802,3.80739923,127.13,127.1,1.57776685]
[1769242831110,5.62960494,127.12,127.1,1.57776685]
[1769242831409,3.80739923,127.13,127.1,1.57776685]
[1769242831594,5.62950461,127.12,127.1,1.57776685]
[1769242831790,3.80739923,127.13,127.1,1.57776685]
[1769242831994,5.62950606,127.12,127.1,1.57776685]
[1769242832195,3.80739923,127.13,127.1,1.57776685]
[1769242832401,5.62940108,127.12,127.1,1.57776685]
[1769242832597,3.80739923,127.13,127.1,1.57776685]
[1769242832795,5.62941001,127.12,127.1,1.57776685]
[1769242832998,3.80739923,127.13,127.1,1.57776685]
[1769242833296,5.62941001,127.12,127.1,1.57776685]
[1769242833495,3.80739923,127.13,127.1,1.57776685]
[1769242833695,5.6293082,127.12,127.1,1.57776685]
[1769242833910,3.80739923,127.13,127.1,1.57776685]
[1769242834112,5.62930964,127.12,127.1,1.57776685]
[1769242834406,3.80739923,127.13,127.1,1.57776685]
[1769242834588,5.62922365,127.12,127.1,1.57776685]
[1769242834790,3.80739923,127.13,127.1,1.57776685]
[1769242835001,5.62922365,127.12,127.1,1.57776685]
[1769242835202,3.80739923,127.13,127.1,1.57776685]
[1769242835411,5.62913939,127.12,127.1,1.57776685]
[1769242835614,3.80739923,127.13,127.1,1.57776685]
[1769242835791,5.62917538,127.12,127.1,1.57776685]
[1769242835992,3.80739923,127.13,127.1,1.57776685]
[1769242836199,5.62918734,127.12,127.1,1.57776685]
[1769242836392,3.80739923,127.13,127.1,1.57776685]
[1769242836606,5.62910664,127.12,127.1,1.57776685]
[1769242836804,3.80739923,127.13,127.1,1.57776685]
[1769242837014,5.62911716,127.12,127.1,1.57776685]
[1769242837319,3.80739923,127.13,127.1,1.57776685]
[1769242837616,5.62903531,127.12,127.1,1.57776685]
[1769242837816,3.80739923,127.13,127.1,1.57776685]
[1769242837991,5.62903675,127.12,127.1,1.57776685]
[1769242838194,3.80739923,127.13,127.1,1.57776685]
[1769242838399,5.62895799,127.12,127.1,1.57776685]
[1769242838601,3.80739923,127.13,127.1,1.57776685]
[1769242838802,5.62895799,127.12,127.1,1.57776685]
[1769242839097,3.80739923,127.13,127.1,1.57776685]
[1769242839298,5.6288958,127.12,127.1,1.57776685]
[1769242839602,3.80739923,127.13,127.1,1.57776685]
[1769242839792,5.62888354,127.12,127.1,1.57776685]
[1769242840004,3.80739923,127.13,127.1,1.57776685]
[1769242840216,5.62888498,127.12,127.1,1.57776685]
[1769242840516,3.80739923,127.13,127.1,1.57776685]
[1769242840715,5.6288132,127.12,127.1,1.57776685]
[1769242840937,3.80739923,127.13,127.1,1.57776685]
[1769242841129,5.62881464,127.12,127.1,1.57776685]
[1769242841416,3.80739923,127.13,127.1,1.57776685]
[1769242841718,5.62873028,127.12,127.1,1.57776685]
[1769242841910,3.80739923,127.13,127.1,1.57776685]
[1769242842113,5.62873028,127.12,127.1,1.57776685]
[1769242842309,3.80739923,127.13,127.1,1.57776685]
[1769242842508,5.62874449,127.12,127.1,1.57776685]
[1769242842710,3.80739923,127.13,127.1,1.57776685]
[1769242842910,5.62879033,127.12,127.1,1.57776685]
[1769242843118,3.80739923,127.13,127.1,1.57776685]
[1769242843305,5.62873781,127.12,127.1,1.57776685]
[1769242843505,3.80739923,127.13,127.1,1.57776685]
[1769242843714,5.62875151,127.12,127.1,1.57776685]
[1769242843908,1.68630706,127.13,127.1,1.57776685]
[1769242844112,5.62875007,127.12,127.1,1.57776685]
[1769242844319,1.68630706,127.13,127.1,1.57776685]
[1769242844520,5.62866203,127.12,127.1,1.57776685]
[1769242844816,1.68630706,127.13,127.1,1.57776685]
[1769242845018,5.62866203,127.12,127.1,1.57776685]
[1769242845199,1.68630706,127.13,127.1,1.57776685]
[1769242845400,5.6286182,127.12,127.1,1.57776685]
[1769242845601,1.68630706,127.13,127.1,1.57776685]
[1769242845801,5.6286182,127.12,127.1,1.57776685]
[1769242846008,1.68630706,127.13,127.1,1.57776685]
[1769242846208,5.62862017,127.12,127.1,1.57776685]
[1769242846408,1.68630706,127.13,127.1,1.57776685]
[1769242846624,5.62857528,127.12,127.1,1.57776685]
[1769242846824,1.68630706,127.13,127.1,1.57776685]
[1769242847117,5.62857528,127.12,127.1,1.57776685]
[1769242847327,1.68630706,127.13,127.1,1.57776685]
[1769242847526,5.62857829,127.12,127.1,1.57776685]
[1769242847701,1.68630706,127.13,127.1,1.57776685]
[1769242847901,5.62857685,127.12,127.1,1.57776685]
[1769242848124,1.68630706,127.13,127.1,1.57776685]
[1769242848438,5.62859044,127.12,127.1,1.57776685]
[1769242848623,1.68630706,127.13,127.1,1.57776685]
[1769242848824,5.62859003,127.12,127.1,1.57776685]
[1769242849018,1.68630706,127.13,127.1,1.57776685]
[1769242849219,5.62859003,127.12,127.1,1.57776685]
[1769242849420,1.68630706,127.13,127.1,1.57776685]
[1769242849627,5.62861587,127.12,127.1,1.57776685]
[1769242849828,1.68630706,127.13,127.1,1.57776685]
[1769242850016,5.62861443,127.12,127.1,1.57776685]
[1769242850216,1.68630706,127.13,127.1,1.57776685]
[1769242850417,5.62865308,127.12,127.1,1.57776685]
[1769242850606,1.68630706,127.13,127.1,1.57776685]
[1769242850906,5.62865163,127.12,127.1,1.57776685]
[1769242851106,1.68630706,127.13,127.1,1.57776685]
[1769242851307,5.62864092,127.12,127.1,1.57776685]
[1769242851506,1.68630706,127.13,127.1,1.57776685]
[1769242851707,5.62866161,127.12,127.1,1.57776685]
[1769242851912,1.68630706,127.13,127.1,1.57776685]
[1769242852112,5.62863157,127.12,127.1,1.57776685]
[1769242852406,1.68630706,127.13,127.1,1.57776685]
[1769242852607,5.62869582,127.12,127.1,1.57776685]
[1769242852808,1.68630706,127.13,127.1,1.57776685]
[1769242865230,104.30893073,127.15,127.1,1.57776685]
[1769242865424,7.37763505,127.14,127.1,1.57776685]
[1769242865622,5.62355008,127.13,127.1,1.57776685]
[1769242865819,1.75408497,127.14,127.1,1.57776685]
[1769242866022,7.37763136,127.13,127.1,1.57776685]
[1769242866222,1.75408497,127.13,127.1,1.57776685]
[1769242875742,3.77166075,127.14,127.1,1.57776685]
[1769242875945,5.62154767,127.13,127.1,1.57776685]
[1769242876121,3.77166075,127.14,127.1,1.57776685]
[1769242876322,5.62170637,127.13,127.1,1.57776685]
[1769242876525,3.77166075,127.14,127.1,1.57776685]
[1769242876741,5.62153173,127.13,127.1,1.57776685]
[1769242876941,3.77166075,127.14,127.1,1.57776685]
[1769242877134,5.62153028,127.13,127.1,1.57776685]
[1769242877328,3.77166075,127.14,127.1,1.57776685]
[1769242877629,5.62124679,127.13,127.1,1.57776685]
[1769242877833,3.77166075,127.14,127.1,1.57776685]
[1769242878126,5.62147676,127.13,127.1,1.57776685]
[1769242878327,3.77166075,127.14,127.1,1.57776685]
[1769242878553,5.62143968,127.13,127.1,1.57776685]
[1769242878842,3.77166075,127.14,127.1,1.57776685]
[1769242879044,5.62143725,127.13,127.1,1.57776685]
[1769242879244,3.77166075,127.14,127.1,1.57776685]
[1769242879431,5.62141589,127.13,127.1,1.57776685]
[1769242879632,3.77166075,127.14,127.1,1.57776685]
[1769242879933,5.62141589,127.13,127.1,1.57776685]
[1769242880132,3.77166075,127.14,127.1,1.57776685]
[1769242880332,5.62141313,127.13,127.1,1.57776685]
[1769242880534,3.77166075,127.14,127.1,1.57776685]
[1769242880738,5.62141169,127.13,127.1,1.57776685]
[1769242880951,1.65049027,127.13,127.1,1.57776685]
[1769242904571,98.58688102,127.15,127.13,1.64220113]
[1769242904758,5.63333993,127.14,127.13,1.64220113]
[1769242904960,3.88694952,127.14,127.13,2.12117048]
[1769242905172,1.74313102,127.17,127.13,3.76337161]
[1769242908270,1.74313102,127.17,127.14,2.12117048]
[1769242915702,1.74313102,127.17,127.14,2.66719219]
[1769242918714,1.74313102,127.17,127.14,2.12117048]
[1769242931326,1.74313102,127.17,127.15,2.12117048]
[1769242931708,1.74313102,127.17,127.14,2.76697799]
[1769242933805,1.69874291,127.18,127.16,2.12117048]
[1769242934927,1.69874291,127.18,127.16,2.11896295]
[1769242936729,1.69874291,127.18,127.15,2.78042533]
[1769242942332,1.69874291,127.18,127.15,0.66146238]
[1769242948318,98.74249291,127.19,127.15,0.66146238]
[1769242948618,5.55749006,127.18,127.15,0.66146238]
[1769242948818,98.74249291,127.19,127.15,0.66146238]
[1769242949017,5.55749613,127.18,127.15,0.66146238]
[1769242949230,98.74249291,127.19,127.15,0.66146238]
[1769242949432,5.55962789,127.18,127.15,0.66146238]
[1769242949718,1.69874291,127.18,127.15,0.66146238]
[1769242950434,98.74249291,127.19,127.15,0.66146238]
[1769242950737,5.5605392,127.18,127.15,0.66146238]
[1769242950935,98.74249291,127.19,127.15,0.66146238]
[1769242951140,5.56054064,127.18,127.15,0.66146238]
[1769242951439,98.74249291,127.19,127.15,0.66146238]
[1769242951619,5.5608977,127.18,127.15,0.66146238]
[1769242951820,98.74249291,127.19,127.15,0.66146238]
[1769242952025,5.56089626,127.18,127.15,0.66146238]
[1769242952239,98.74249291,127.19,127.15,0.66146238]
[1769242952426,5.56099847,127.18,127.15,0.66146238]
[1769242952626,98.74249291,127.19,127.15,0.66146238]
[1769242952829,5.56099847,127.18,127.15,0.66146238]
[1769242953137,98.74249291,127.19,127.15,0.66146238]
[1769242953338,5.56113282,127.18,127.15,0.66146238]
[1769242953636,98.74249291,127.19,127.15,0.66146238]
[1769242953838,5.56113282,127.18,127.15,0.66146238]
[1769242954034,98.74249291,127.19,127.15,0.66146238]
[1769242954221,5.56130187,127.18,127.15,0.66146238]
[1769242954539,98.74249291,127.19,127.15,0.66146238]
[1769242954728,5.56129411,127.18,127.15,0.66146238]
[1769242954928,98.74249291,127.19,127.15,0.66146238]
[1769242955234,5.56129267,127.18,127.15,0.66146238]
[1769242955431,98.74249291,127.19,127.15,0.66146238]
[1769242955739,1.77034228,127.17,127.12,10.75034256]
[1769242955924,1.77034228,127.17,127.12,25.87137961]
[1769242956238,1.77034228,127.16,127.12,51.60030596]
[1769242959738,1.77034228,127.16,127.13,2.11896295]
[1769242964653,1.77034228,127.16,127.13,2.91763527]
[1769242986175,1.77034228,127.16,127.13,0.79867232]
[1769243010308,1.77034228,127.16,127.13,2.91844703]
[1769243010698,1.77034228,127.16,127.13,0.79867232]
[1769243011008,1.77034228,127.16,127.13,2.91844703]
[1769243013315,5.72365425,127.15,127.13,2.91844703]
[1769243013602,1.77034228,127.16,127.13,2.91844703]
[1769243013811,5.72367649,127.15,127.13,2.91844703]
[1769243014004,1.77034228,127.16,127.13,8.64210128]
[1769243014303,5.72367504,127.15,127.13,8.64210128]
[1769243014504,1.77034228,127.16,127.13,8.64210128]
[1769243014702,5.72378146,127.15,127.13,8.64210128]
[1769243014904,1.77034228,127.16,127.13,8.64210128]
[1769243015100,5.72378001,127.15,127.13,2.91844703]
[1769243015301,1.77034228,127.16,127.13,2.91844703]
[1769243015507,5.72389391,127.15,127.13,2.91844703]
[1769243015692,1.77034228,127.16,127.13,2.91844703]
[1769243015990,5.72389246,127.15,127.13,2.91844703]
[1769243016285,1.77034228,127.16,127.13,2.91844703]
[1769243016485,5.7240182,127.15,127.13,2.91844703]
[1769243016710,1.77034228,127.16,127.13,2.91844703]
[1769243017010,5.72401675,127.15,127.13,2.91844703]
[1769243017317,1.77034228,127.16,127.13,2.91844703]
[1769243017610,5.72414961,127.15,127.13,2.91844703]
[1769243017807,1.77034228,127.16,127.13,2.91844703]
[1769243018011,5.72414961,127.15,127.13,2.91844703]
[1769243018204,1.77034228,127.16,127.13,2.91844703]
[1769243018404,5.72414849,127.15,127.13,2.91844703]
[1769243018708,1.77034228,127.16,127.13,2.91844703]
[1769243018915,5.72414705,127.15,127.13,2.91844703]
[1769243019212,1.77034228,127.16,127.13,2.91844703]
[1769243019414,5.72414593,127.15,127.13,2.91844703]
[1769243019607,1.77034228,127.16,127.13,2.91844703]
[1769243019915,5.72414738,127.15,127.13,2.91844703]
[1769243020100,1.77034228,127.16,127.13,2.91844703]
[1769243020302,5.72414738,127.15,127.13,2.91844703]
[1769243020500,1.77034228,127.16,127.13,2.91844703]
[1769243020703,5.72414556,127.15,127.13,2.91844703]
[1769243020904,1.77034228,127.16,127.13,2.91844703]
[1769243021195,5.72414701,127.15,127.13,2.91844703]
[1769243021409,1.77034228,127.16,127.13,2.91844703]
[1769243021712,5.72414665,127.15,127.13,2.91844703]
[1769243021911,1.77034228,127.16,127.13,2.91844703]
[1769243022215,5.72414665,127.15,127.13,2.91844703]
[1769243022400,1.77034228,127.16,127.13,2.91844703]
[1769243022603,5.72414483,127.15,127.13,2.91844703]
[1769243022803,1.77034228,127.16,127.13,0.79867232]
[1769243031118,5.72341132,127.15,127.13,0.79867232]
[1769243031321,1.77034228,127.16,127.13,0.79867232]
[1769243035833,5.7218651,127.15,127.13,0.79867232]
[1769243036119,5.7218651,127.14,127.13,0.79867232]
[1769243037633,1.77034228,127.16,127.13,0.79867232]
[1769243041225,1.77034228,127.16,127.13,2.91844703]
[1769243044432,1.77034228,127.16,127.14,2.11977471]
[1769243050436,1.77034228,127.16,127.13,2.91844703]
[1769243052254,1.84512474,127.17,127.14,3.11928834]
[1769243056856,1.84512474,127.17,127.14,3.11885123]
[1769243069674,1.84512474,127.18,127.15,1.01937169]
[1769243070075,1.84512474,127.18,127.15,3.13870929]
[1769243075582,1.84512474,127.18,127.16,17.24]
[1769243075785,1.84512474,127.18,127.16,19.3593376]
[1769243080272,1.84512474,127.18,127.16,17.24]
[1769243080888,1.84512474,127.18,127.15,17.24]
[1769243088205,1.84512474,127.18,127.15,18.27626906]
[1769243090415,1.84512474,127.18,127.15,20.39560666]
[1769243091814,1.84512474,127.18,127.15,18.27626906]
[1769243091999,1.84512474,127.18,127.15,20.39560666]
[1769243096122,1.84512474,127.18,127.15,19.3593376]
[1769243096620,1.84512474,127.18,127.15,20.39472816]
[1769243097620,1.84512474,127.18,127.15,18.27539056]
[1769243097997,1.84512474,127.18,127.15,20.39472816]
[1769243101916,1.84512474,127.18,127.15,18.27539056]
[1769243105212,1.84512474,127.18,127.15,17.24]
[1769243106017,1.84512474,127.18,127.14,3.15171817]
[1769243119030,1.84512474,127.18,127.14,3.15186268]
[1769243123324,5.77366075,127.17,127.14,3.15186268]
[1769243123531,1.86673548,127.17,127.14,3.15186268]
[1769243123852,1.77694218,127.17,127.14,3.15186268]
[1769243132348,1.77694218,127.17,127.14,26.75996812]
[1769243138171,1.77694218,127.17,127.14,24.64048601]
[1769243141671,1.77694218,127.17,127.15,17.24]
[1769243147676,97.04375,127.19,127.15,17.24]
[1769243147982,7.68744838,127.18,127.15,18.35588034]
[1769243148183,5.78949361,127.17,127.15,18.35588034]
[1769243148365,1.89795477,127.18,127.15,18.35588034]
[1769243148705,5.78980885,127.17,127.15,20.47536245]
[1769243148882,1.89795477,127.18,127.15,20.47536245]
[1769243149182,5.78981622,127.17,127.15,20.47536245]
[1769243149369,1.89795477,127.18,127.15,20.47536245]
[1769243149571,5.79024815,127.17,127.15,20.47536245]
[1769243149771,1.89795477,127.18,127.15,20.47536245]
[1769243149965,5.79024815,127.17,127.15,20.47536245]
[1769243150165,1.89795477,127.18,127.15,20.47536245]
[1769243150479,5.79118954,127.17,127.15,20.47536245]
[1769243150679,1.89795477,127.18,127.15,20.47536245]
[1769243150882,5.79118954,127.17,127.15,20.47536245]
[1769243151063,1.89795477,127.18,127.15,20.47536245]
[1769243151263,5.79118954,127.17,127.15,20.47536245]
[1769243151464,1.89795477,127.18,127.15,20.47536245]
[1769243151665,5.79076066,127.17,127.15,20.47536245]
[1769243151866,1.89795477,127.18,127.15,20.47536245]
[1769243152068,5.79065976,127.17,127.15,20.47536245]
[1769243152387,1.89795477,127.18,127.15,20.47536245]
[1769243152568,5.79018222,127.17,127.15,20.47536245]
[1769243152770,1.89795477,127.18,127.15,20.47536245]
[1769243152970,5.79043816,127.17,127.15,20.47536245]
[1769243153176,1.89795477,127.18,127.15,20.47536245]
[1769243153377,7.68840033,127.17,127.15,20.47536245]
[1769243153577,1.89795477,127.17,127.15,18.35588034]
[1769243156366,1.89795477,127.17,127.15,20.47536245]
[1769243159196,1.20612956,127.17,127.15,20.47536245]
[1769243160294,0.05752386,127.17,127.15,20.47536245]
[1769243160475,97.04375,127.19,127.16,3.99120219]
[1769243160792,5.75410618,127.18,127.16,2.11948211]
[1769243160991,97.04375,127.19,127.16,2.11948211]
[1769243161194,5.75410916,127.18,127.16,2.11948211]
[1769243161389,97.04375,127.19,127.16,2.11948211]
[1769243161588,5.77153217,127.18,127.16,2.11948211]
[1769243161782,97.04375,127.19,127.16,2.11948211]
[1769243161988,5.77153071,127.18,127.16,2.11948211]
[1769243162296,1.99530944,127.18,127.15,44.83744997]
[1769243170081,1.99530944,127.18,127.16,4.14408847]
[1769243170404,1.99530944,127.18,127.16,2.02460636]
[1769243170785,1.99530944,127.18,127.15,44.99033625]
[1769243172497,1.99530944,127.18,127.16,2.11948211]
[1769243172907,1e-08,127.18,127.16,2.11948211]
[1769243178919,1e-08,127.18,127.16,2.11888889]
[1769243183901,1e-08,127.18,127.16,4.14349525]
[1769243184422,98.9434798,127.19,127.16,4.14349525]
[1769243184622,5.8004587,127.18,127.16,4.14349525]
[1769243184822,98.9434798,127.19,127.16,4.14349525]
[1769243185017,5.8004587,127.18,127.16,4.14349525]
[1769243185223,98.9434798,127.19,127.16,4.14349525]
[1769243185418,5.80049672,127.18,127.16,4.14349525]
[1769243185620,98.9434798,127.19,127.16,4.14349525]
[1769243186123,98.9434798,127.19,127.16,2.02460636]
[1769243186332,1.8997298,127.18,127.16,2.02460636]
[1769243188724,98.9434798,127.19,127.16,4.14349525]
[1769243189020,98.9434798,127.19,127.16,27.74788566]
[1769243190133,2.0997298,127.19,127.16,27.74788566]
[1769243194426,0.2,127.19,127.18,2.01097262]
[1769243194619,2.16482234,127.19,127.17,2.11888889]
[1769243195128,2.16482234,127.19,127.16,27.73425192]
[1769243198725,2.16482234,127.19,127.17,2.01097262]
[1769243211632,0.2,127.19,127.17,4.12986151]
[1769243212333,1.96482234,127.2,127.17,4.12986151]
[1769243212932,1.96482234,127.2,127.17,2.11888889]
[1769243213136,1.96482234,127.2,127.18,2.01097262]
[1769243214837,1.96482234,127.2,127.17,2.11888889]
[1769243215131,1.96482234,127.2,127.17,4.12986151]
[1769243217216,1.96482234,127.2,127.17,27.73239484]
[1769243221142,1.96482234,127.2,127.17,4.12986151]
[1769243221346,1.96482234,127.2,127.18,23.60253333]
[1769243223939,1.96482234,127.2,127.17,4.12986151]
[1769243224147,1.96482234,127.2,127.17,2.01097262]
[1769243224341,1.96482234,127.2,127.17,25.61350595]
[1769243227752,1.96482234,127.2,127.18,1.99391682]
[1769243228448,1.96482234,127.2,127.18,5.14092126]
[1769243230149,5.73486525,127.19,127.18,5.14092126]
[1769243238460,5.73678436,127.19,127.18,5.14092126]
[1769243239562,99.19842579,127.21,127.18,5.14092126]
[1769243239859,5.73650652,127.2,127.18,5.14092126]
[1769243240061,99.19842579,127.21,127.18,5.14092126]
[1769243240247,5.73653058,127.2,127.18,5.14092126]
[1769243240449,99.19842579,127.21,127.18,5.14092126]
[1769243240647,5.73632374,127.2,127.18,5.14092126]
[1769243240849,99.19842579,127.21,127.18,5.14092126]
[1769243241056,5.73632374,127.2,127.18,5.14092126]
[1769243241260,99.19842579,127.21,127.18,5.14092126]
[1769243241461,5.73617709,127.2,127.18,5.14092126]
[1769243241663,99.19842579,127.21,127.18,5.14092126]
[1769243241859,5.73617854,127.2,127.18,5.14092126]
[1769243242062,99.19842579,127.21,127.18,5.14092126]
[1769243242252,5.73613001,127.2,127.18,5.14092126]
[1769243242453,99.19842579,127.21,127.18,5.14092126]
[1769243242653,5.73597218,127.2,127.18,5.14092126]
[1769243242853,99.19842579,127.21,127.18,5.14092126]
[1769243243055,5.73597218,127.2,127.18,5.14092126]
[1769243243254,99.19842579,127.21,127.18,5.14092126]
[1769243243454,7.89055786,127.2,127.18,5.14092126]
[1769243243656,2.15467579,127.2,127.18,5.14092126]
[1769243247886,2.15467579,127.2,127.17,27.93972195]
[1769243248388,2.15467579,127.2,127.17,4.33718862]
[1769243248586,5.73628857,127.19,127.17,4.33718862]
[1769243248786,2.15467579,127.2,127.17,4.33718862]
[1769243248989,5.73629001,127.19,127.17,4.33718862]
[1769243249292,2.15467579,127.2,127.17,2.21876716]
[1769243249473,5.73644008,127.19,127.17,2.21876716]
[1769243249674,2.15467579,127.2,127.17,2.21876716]
[1769243250002,5.74095089,127.19,127.17,2.21876716]
[1769243250189,2.15467579,127.2,127.17,2.21876716]
[1769243250403,5.74106864,127.19,127.17,2.21876716]
[1769243250567,2.15467579,127.2,127.17,2.21876716]
[1769243250765,5.74111274,127.19,127.17,2.21876716]
[1769243251091,2.15467579,127.2,127.17,2.21876716]
[1769243251295,5.74124671,127.19,127.17,2.21876716]
[1769243251488,2.15467579,127.2,127.17,2.21876716]
[1769243251787,5.74128756,127.19,127.17,2.21876716]
[1769243251989,2.15467579,127.2,127.17,2.21876716]
[1769243252168,5.74128756,127.19,127.17,2.21876716]
[1769243252368,2.15467579,127.2,127.17,2.21876716]
[1769243252572,5.74147687,127.19,127.17,2.21876716]
[1769243252773,2.15467579,127.2,127.17,2.21876716]
[1769243252976,5.74147832,127.19,127.17,2.21876716]
[1769243253180,2.15467579,127.2,127.17,2.21876716]
[1769243253380,5.74165236,127.19,127.17,2.21876716]
[1769243253680,2.15467579,127.2,127.17,2.21876716]
[1769243253883,5.74168523,127.19,127.17,2.21876716]
[1769243254081,2.15467579,127.2,127.17,2.21876716]
[1769243254282,5.74188443,127.19,127.17,2.21876716]
[1769243254492,2.15467579,127.2,127.17,2.21876716]
[1769243254675,5.7419123,127.19,127.17,2.21876716]
[1769243254875,2.15467579,127.2,127.17,2.21876716]
[1769243255096,5.74191086,127.19,127.17,2.21876716]
[1769243255272,2.15467579,127.2,127.17,2.21876716]
[1769243255475,5.74217141,127.19,127.17,2.21876716]
[1769243255671,2.15467579,127.2,127.17,2.21876716]
[1769243255883,5.74217286,127.19,127.17,2.21876716]
[1769243256084,2.15467579,127.2,127.17,2.21876716]
[1769243256284,5.74244312,127.19,127.17,2.21876716]
[1769243256485,2.15467579,127.2,127.17,2.21876716]
[1769243256687,5.74245634,127.19,127.17,2.21876716]
[1769243256994,2.10554212,127.19,127.16,2.08294757]
[1769243257684,2.10554212,127.17,127.13,2.08294757]
[1769243258000,2.10554212,127.17,127.13,21.44136903]
[1769243258205,2.10554212,127.17,127.14,2.08294757]
[1769243264687,2.10554212,127.17,127.14,4.20136903]
[1769243266894,2.10554212,127.17,127.14,2.08294757]
[1769243270617,2.10554212,127.17,127.14,4.20136903]
[1769243276618,2.10554212,127.17,127.14,2.08294757]
[1769243300048,96.84375,127.18,127.15,4.37529481]
[1769243300214,99.00127911,127.18,127.15,4.37529481]
[1769243300407,5.80953217,127.17,127.15,4.37529481]
[1769243300612,99.00127911,127.18,127.15,4.37529481]
[1769243300817,5.80953064,127.17,127.15,4.37529481]
[1769243301021,99.00127911,127.18,127.15,4.37529481]
[1769243301242,5.80954029,127.17,127.15,4.37529481]
[1769243301427,99.00127911,127.18,127.15,4.37529481]
[1769243301614,5.81165538,127.17,127.15,4.37529481]
[1769243301816,99.00127911,127.18,127.15,4.37529481]
[1769243302016,5.81155143,127.17,127.15,4.37529481]
[1769243302226,99.00127911,127.18,127.15,4.37529481]
[1769243302434,5.81347203,127.17,127.15,4.37529481]
[1769243302633,99.00127911,127.18,127.15,4.37529481]
[1769243302844,5.81347203,127.17,127.15,4.37529481]
[1769243303043,99.00127911,127.18,127.15,4.3761919]
[1769243303332,5.81326244,127.17,127.15,4.3761919]
[1769243303529,99.00127911,127.18,127.15,4.3761919]
[1769243303724,5.8134431,127.17,127.15,4.3761919]
[1769243304034,99.00127911,127.18,127.15,4.3761919]
[1769243304217,5.81323984,127.17,127.15,4.3761919]
[1769243304418,99.00127911,127.18,127.15,4.3761919]
[1769243304638,5.81321446,127.17,127.15,4.3761919]
[1769243304841,99.00127911,127.18,127.15,4.3761919]
[1769243305026,5.8132159,127.17,127.15,4.3761919]
[1769243305224,99.00127911,127.18,127.15,4.3761919]
[1769243305432,5.81302039,127.17,127.15,4.3761919]
[1769243305635,99.00127911,127.18,127.15,4.3761919]
[1769243305831,5.81301895,127.17,127.15,4.3761919]
[1769243306028,99.00127911,127.18,127.15,4.3761919]
[1769243306222,5.81287181,127.17,127.15,4.3761919]
[1769243306455,99.00127911,127.18,127.15,2.25687335]
[1769243306674,5.81284623,127.17,127.15,2.25687335]
[1769243306859,99.00127911,127.18,127.15,2.25687335]
[1769243307067,5.81284767,127.17,127.15,2.25687335]
[1769243307264,99.00127911,127.18,127.15,2.25687335]
[1769243307478,5.81269445,127.17,127.15,2.25687335]
[1769243307651,99.00127911,127.18,127.15,2.25687335]
[1769243307968,5.81269589,127.17,127.15,2.25687335]
[1769243308166,2.15752911,127.17,127.13,21.6161919]
[1769243308358,2.15752911,127.17,127.13,2.25687335]